{"text_format":"1","workbook":"xlsx","n_sheets":5,"sheets":["Aperçu Offre","Postes","Omissions","3P","Légende"],"not_rendered":{"charts":0,"images":0,"macros":1,"external_links":0,"defined_names":1,"comments":0,"pivot_tables":0},"unopened":[],"bounds":{"document_bytes":16777216,"sheet_cells":100000,"rows_first":2000,"rows_last":500,"rows_between":2000,"halvings":0,"cell_chars":16384,"cell_head_chars":4096},"cells_cut":0,"cells_raw":0,"read":"whole","date_system":"1900"}

{"sheet":"Aperçu Offre","index":0,"n_rows":39,"n_cols":3,"rows_kept":39,"cut":false,"hidden":false,"merged":[[36,0,36,1],[37,0,37,1],[38,0,38,1],[10,0,10,1],[11,0,11,1],[9,2,9,3],[12,0,12,1],[7,2,7,3],[8,2,8,3],[10,2,10,3],[11,2,11,3],[12,2,12,3],[7,0,7,1],[8,0,8,1],[9,0,9,1]]}
[null,null,"OFFRE"]
[]
[]
[]
[]
[]
[]
["Marché",null,"Beaumont - Entretien des voiries 2021 - Lot 3 (Strée - Rue de Donstiennes)"]
["Référence",null,"AC/1160/2019/0038-1"]
["Lieu",null,"Plusieurs lieux"]
["Pouvoir adjudicateur",null,"Ville de Beaumont"]
["Bureau d'études",null,"Arrondissement de Charleroi - Thuin"]
["Auteur de projet",null,"Xavier Appelmans"]
[]
[]
["Total des postes"]
[null,"Hors TVA",{"$f":"Postes!M43","v":5000}]
[null,"TVA",{"$f":"C19-C17","v":1050}]
[null,"TVA comprise",{"$f":"Postes!M45","v":6050}]
[]
["Total des omissions"]
[null,"HTVA",{"$f":"Omissions!E14","v":0}]
[null,"TVA",{"$f":"Omissions!E15","v":0}]
[null,"TVA comprise",{"$f":"C22+C23","v":0}]
[]
["Total de l'Offre"]
[null,"HTVA",{"$f":"C17+C22","v":5000}]
[null,"TVA",{"$f":"C18+C23","v":1050}]
[null,"TVA comprise",{"$f":"C19+C24","v":6050}]
[]
[]
[]
[]
[]
["Lu et approuvé,"]
[]
["Date"]
["Nom firme"]
["Addresse firme"]

{"sheet":"Postes","index":1,"n_rows":50,"n_cols":17,"rows_kept":50,"cut":false,"hidden":false,"merged":[[49,0,63,16],[2,0,2,16],[42,0,42,11],[43,0,43,11],[44,0,44,11],[45,0,48,16]]}
[]
[]
["Métré récapitulatif\n  “Beaumont - Entretien des voiries 2021 - Lot 3 (Strée - Rue de Donstiennes)”"]
["N°","Référence",null,"Description","Type","U","Q"," +"," -","Adapté","PU HTVA","PU en lettres","Total","TVA %","TVA","Remarques"]
[null,"","AC/1160/2019/0038-1","BEAUMONT - ENTRETIEN 2021 - LOT3 Strée\nrue de Donstiennes",""]
[null,"","","rue de Donstiennes",""]
[null,"","","CHAPITRE D : TRAVAUX PREPARATOIRES - DEMOLITIONS",""]
[1,"D3160-D","D.2.","Démolition sélective par fraisage de revêtement hydrocarboné, en épaisseur constante, profondeur : 7cm < E <= 10 cm, avec mise en dépôt","QP","m2",4950,null,null,{"$f":"G8-I8+H8","v":4950},null,{"$f":"EUROToLetters(K8)","v":{"$error":"#NAME?"}},{"$f":"ROUND(G8*ROUND(K8,2),2)","v":0},0.21,{"$f":"ROUND(N8*ROUND(M8,2),2)","v":0},null,"k3"]
[2,"D4112","D.2.","Sciage de revêtement en hydrocarboné, profondeur : 5 < E <= 10 cm","QP","m",30,null,null,{"$f":"G9-I9+H9","v":30},null,{"$f":"EUROToLetters(K9)","v":{"$error":"#NAME?"}},{"$f":"ROUND(G9*ROUND(K9,2),2)","v":0},0.21,{"$f":"ROUND(N9*ROUND(M9,2),2)","v":0},null,"k3"]
[3,"D4610-RE","D.2.","Démolition sélective de fondation / sous-fondation de chaussée, en matériaux non liés, en recherche, en vue d'une évacuation","QP","m3",310,null,null,{"$f":"G10-I10+H10","v":310},null,{"$f":"EUROToLetters(K10)","v":{"$error":"#NAME?"}},{"$f":"ROUND(G10*ROUND(K10,2),2)","v":0},0.21,{"$f":"ROUND(N10*ROUND(M10,2),2)","v":0},null,"k3"]
[null,"","","En vue des remplacements ponctuels éventuels de fondation existante non portante, suivant les indications du fonctionnaire délégué","PM",null,null,null,null,null,null,"(est compris dans le PU)"]
[4,"D9440","D.2.","Mise en site autorisé de déchets traités de pierres naturelles - Code wallon des déchets : 01.01.02 - Déchets provenant de l'extraction de minéraux non métallifères","QP","m3",232.5,null,null,{"$f":"G12-I12+H12","v":232.5},null,{"$f":"EUROToLetters(K12)","v":{"$error":"#NAME?"}},{"$f":"ROUND(G12*ROUND(K12,2),2)","v":0},0.21,{"$f":"ROUND(N12*ROUND(M12,2),2)","v":0},null,"k3"]
[null,"","","Evacuation des déchets du(des) poste(s) n° 3","PM",null,null,null,null,null,null,"(est compris dans le PU)"]
[5,"D9465","D.2.","Mise en site autorisé de terres - Type d'usage V - Industriel","QP","m3",317.5,null,null,{"$f":"G14-I14+H14","v":317.5},null,{"$f":"EUROToLetters(K14)","v":{"$error":"#NAME?"}},{"$f":"ROUND(G14*ROUND(K14,2),2)","v":0},0.21,{"$f":"ROUND(N14*ROUND(M14,2),2)","v":0},null,"k3"]
[null,"","","Evacuation des déchets du(des) poste(s) n° 3, 7","PM",null,null,null,null,null,null,"(est compris dans le PU)"]
[null,"","","CHAPITRE E : TERRASSEMENTS",""]
[6,"E2320-E","E.2.2.","Déblais localisés, pour coffre de chaussée, en vue d'une évacuation","QP","m3",240,null,null,{"$f":"G17-I17+H17","v":240},null,{"$f":"EUROToLetters(K17)","v":{"$error":"#NAME?"}},{"$f":"ROUND(G17*ROUND(K17,2),2)","v":0},0.21,{"$f":"ROUND(N17*ROUND(M17,2),2)","v":0},null,"k3"]
[null,"","","CHAPITRE F : SOUS-FONDATIONS ET FONDATIONS",""]
[7,"F1110","F.2.1.1.","Travaux préalables, géosynthétiques, géotextile anticontaminant","QP","m2",1500,null,null,{"$f":"G19-I19+H19","v":1500},null,{"$f":"EUROToLetters(K19)","v":{"$error":"#NAME?"}},{"$f":"ROUND(G19*ROUND(K19,2),2)","v":0},0.21,{"$f":"ROUND(N19*ROUND(M19,2),2)","v":0},null,"k3"]
[8,"F1512","F.4.1.","Travaux préalables, reprofilage d'une sous-fondation/fondation préexistante, reprofilage et compactage, d'une fondation préexistante","QP","m2",4950,null,null,{"$f":"G20-I20+H20","v":4950},null,{"$f":"EUROToLetters(K20)","v":{"$error":"#NAME?"}},{"$f":"ROUND(G20*ROUND(K20,2),2)","v":0},0.21,{"$f":"ROUND(N20*ROUND(M20,2),2)","v":0},null,"k3"]
[9,"F1522-F","F.4.1.","Travaux préalables, reprofilage d'une sous-fondation/fondation préexistante, matériaux d'apport pour reprofilage, pour une fondation","QP","t",100,null,null,{"$f":"G21-I21+H21","v":100},null,{"$f":"EUROToLetters(K21)","v":{"$error":"#NAME?"}},{"$f":"ROUND(G21*ROUND(K21,2),2)","v":0},0.21,{"$f":"ROUND(N21*ROUND(M21,2),2)","v":0},null,"k3"]
[10,"F3134","F.4.2.","Fondation en empierrement continu type I A ou II A (au ciment), épaisseur : E = 25 cm","QP","m2",1200,null,null,{"$f":"G22-I22+H22","v":1200},null,{"$f":"EUROToLetters(K22)","v":{"$error":"#NAME?"}},{"$f":"ROUND(G22*ROUND(K22,2),2)","v":0},0.21,{"$f":"ROUND(N22*ROUND(M22,2),2)","v":0},null,"k3"]
[null,"","","En vue des remplacements ponctuels éventuels de fondation existante non portante, suivant les indications du fonctionnaire délégué","PM",null,null,null,null,null,null,"(est compris dans le PU)"]
[null,"","","CHAPITRE G : REVETEMENTS",""]
[11,"G2310-R","G.2.2.2.1.1.","Enrobés à squelette sableux, AC-10base3-1, en recherche","QP","t",750,null,null,{"$f":"G25-I25+H25","v":750},null,{"$f":"EUROToLetters(K25)","v":{"$error":"#NAME?"}},{"$f":"ROUND(G25*ROUND(K25,2),2)","v":0},0.21,{"$f":"ROUND(N25*ROUND(M25,2),2)","v":0},null,"k1"]
[12,"G2611","G.2.2.2.1.2.","Enrobés à squelette sableux, AC-10surf4-1 - épaisseur E = 40 mm","QP","m2",4950,null,null,{"$f":"G26-I26+H26","v":4950},null,{"$f":"EUROToLetters(K26)","v":{"$error":"#NAME?"}},{"$f":"ROUND(G26*ROUND(K26,2),2)","v":0},0.21,{"$f":"ROUND(N26*ROUND(M26,2),2)","v":0},null,"k1"]
[13,"G5211","G. 2.2.8.2.","Opération sur revêtement, couche de collage sur béton récent","QP","m2",1200,null,null,{"$f":"G27-I27+H27","v":1200},null,{"$f":"EUROToLetters(K27)","v":{"$error":"#NAME?"}},{"$f":"ROUND(G27*ROUND(K27,2),2)","v":0},0.21,{"$f":"ROUND(N27*ROUND(M27,2),2)","v":0},null,"k1"]
[null,"","","sur les éventuels remplacements de fondation existantes","PM",null,null,null,null,null,null,"(est compris dans le PU)"]
[14,"G5221","G. 2.2.8.2.","Opération sur revêtement, couche de collage sur enrobé bitumineux récent","QP","m2",4950,null,null,{"$f":"G29-I29+H29","v":4950},null,{"$f":"EUROToLetters(K29)","v":{"$error":"#NAME?"}},{"$f":"ROUND(G29*ROUND(K29,2),2)","v":0},0.21,{"$f":"ROUND(N29*ROUND(M29,2),2)","v":0},null,"k1"]
[15,"G8831","G.6.","Revêtement en granulats, épaisseur : E = 5 cm","QP","m2",300,null,null,{"$f":"G30-I30+H30","v":300},null,{"$f":"EUROToLetters(K30)","v":{"$error":"#NAME?"}},{"$f":"ROUND(G30*ROUND(K30,2),2)","v":0},0.21,{"$f":"ROUND(N30*ROUND(M30,2),2)","v":0},null,"k3"]
[null,"","","Pour rétablissement d'accotements","PM",null,null,null,null,null,null,"(est compris dans le PU)"]
[null,"","","CHAPITRE M : TRAVAUX D'ENTRETIEN ET DE REPARATION",""]
[16,"M1241-E","M.1.6.8.","Curage de fossé non revêtu, en accotement, en vue d'une évacuation","QP","m",2500,null,null,{"$f":"G33-I33+H33","v":2500},null,{"$f":"EUROToLetters(K33)","v":{"$error":"#NAME?"}},{"$f":"ROUND(G33*ROUND(K33,2),2)","v":0},0.21,{"$f":"ROUND(N33*ROUND(M33,2),2)","v":0},null,"k3"]
[17,"M8420-C","M.1.11.","Terr. part. , remise sous profil d'accotement, avec apport de matériaux, en provenance du chantier","QP","t",520,null,null,{"$f":"G34-I34+H34","v":520},null,{"$f":"EUROToLetters(K34)","v":{"$error":"#NAME?"}},{"$f":"ROUND(G34*ROUND(K34,2),2)","v":0},0.21,{"$f":"ROUND(N34*ROUND(M34,2),2)","v":0},null,"k3"]
[null,"","","Réuilisation des fraisats en accotement","PM",null,null,null,null,null,null,"(est compris dans le PU)"]
[null,"","","CHAPITRE X : TRAVAUX EN REGIE ET DIVERS",""]
[18,"X1120","","Prestation d'ouvrier spécialisé","QP","h",32,null,null,{"$f":"G37-I37+H37","v":32},null,{"$f":"EUROToLetters(K37)","v":{"$error":"#NAME?"}},{"$f":"ROUND(G37*ROUND(K37,2),2)","v":0},0.21,{"$f":"ROUND(N37*ROUND(M37,2),2)","v":0},null,"k3"]
[19,"X1140","","Prestation d'ouvrier qualifié du 2ème échelon","QP","h",32,null,null,{"$f":"G38-I38+H38","v":32},null,{"$f":"EUROToLetters(K38)","v":{"$error":"#NAME?"}},{"$f":"ROUND(G38*ROUND(K38,2),2)","v":0},0.21,{"$f":"ROUND(N38*ROUND(M38,2),2)","v":0},null,"k3"]
[20,"X2130","","Utilisation d'un camion de charge utile supérieure à 15 t","QP","h",32,null,null,{"$f":"G39-I39+H39","v":32},null,{"$f":"EUROToLetters(K39)","v":{"$error":"#NAME?"}},{"$f":"ROUND(G39*ROUND(K39,2),2)","v":0},0.21,{"$f":"ROUND(N39*ROUND(M39,2),2)","v":0},null,"k3"]
[21,"X2220","","Utilisation d'un engin de terrassement, puissance comprise entre 50 KW et 75 KW","QP","h",32,null,null,{"$f":"G40-I40+H40","v":32},null,{"$f":"EUROToLetters(K40)","v":{"$error":"#NAME?"}},{"$f":"ROUND(G40*ROUND(K40,2),2)","v":0},0.21,{"$f":"ROUND(N40*ROUND(M40,2),2)","v":0},null,"k3"]
[22,"X9100","","Somme réservée","SR","EUR",5000,null,null,{"$f":"G41-I41+H41","v":5000},1,{"$f":"EUROToLetters(K41)","v":{"$error":"#NAME?"}},{"$f":"ROUND(G41*ROUND(K41,2),2)","v":5000},0.21,{"$f":"ROUND(N41*ROUND(M41,2),2)","v":1050},null,"k2"]
[]
["Total HTVA :",null,null,null,null,null,null,null,null,null,null,null,{"$f":"SUM(M8:M41)","v":5000}]
["TVA :",null,null,null,null,null,null,null,null,null,null,null,{"$f":"SUM(O8:O41)","v":1050}]
["Total TVAC :",null,null,null,null,null,null,null,null,null,null,null,{"$f":"M43+M44","v":6050}]
["Les prix unitaires doivent être mentionnés avec 2 chiffres après la virgule. \nLa quantité de produits x le prix unitaire doivent être à chaque fois arrondis à 2 chiffres après la virgule."]
[]
[]
[]
["Vu, vérifié et complété avec les prix unitaires, les totaux partiels et le total global qui ont servi à déterminer le montant de mon offre de ce jour, pour être joint à mon formulaire d’offre.\n\nFait à .......................................... le ......................................................                  Fonction : ......................................................\n\n\n\nNom et prénom : ...................................................................."]

{"sheet":"Omissions","index":2,"n_rows":16,"n_cols":7,"rows_kept":16,"cut":false,"hidden":false,"merged":[]}
[]
[]
["Description","Q","PU en chiffres","PU en lettres","Total","TVA %","TVA"]
[null,null,null,null,{"$f":"ROUND(B4*C4,2)","v":0},null,{"$f":"E4*F4","v":0}]
[null,null,null,null,{"$f":"ROUND(B5*C5,2)","v":0},null,0]
[null,null,null,null,{"$f":"ROUND(B6*C6,2)","v":0},null,0]
[null,null,null,null,0,null,0]
[null,null,null,null,0,null,0]
[null,null,null,null,0,null,0]
[null,null,null,null,0,null,0]
[null,null,null,null,0,null,0]
[null,null,null,null,0,null,0]
[null,null,null,null,{"$f":"ROUND(B13*C13,2)","v":0},null,0]
[null,null,null,"Total : ",{"$f":"SUM(E4:E13)","v":0}]
[null,null,null,"TVA :",{"$f":"ROUND(SUM(G4:G13),2)","v":0}]
[null,null,null,"Total TVAC :",{"$f":"E14+E15","v":0}]

{"sheet":"3P","index":3,"n_rows":21,"n_cols":2,"rows_kept":21,"cut":false,"hidden":false,"merged":[]}
[null,"A propos de 3P"]
[]
[null,"3P - Gestion des marchés publics par une application conviviale pour la gestion, le suivi et l'automatisation des dossiers d'achat des pouvoirs adjudicateurs soumis à la \"Législation sur les Marchés Publics\"."]
[null,"3P englobe la gestion des dossiers de marché public de A à Z :"]
[null,"du budget à l'exécution"]
[null,"3P est le seul programme sur le marché à proposer la gestion aussi bien de travaux que de fournitures et services, et ceci pour toutes les procédures, nationales ou européennes. Le suivi budgétaire (budget, crédits, subsides, amendes, cautions, ...), le suivi administratif ainsi que la génération de documents (tous les documents requis par la loi sont repris!), le suivi technique (métrés, états d'avancement, ...), toutes les opérations de calcul (prix anormaux, omissions, décompte final, ...) : tous sont repris dans le programme 3P, le seul programme vous proposant une gestion aussi complète de vos marchés publics."]
[null,"3P a été élaboré en collaboration avec un groupe d'administrations publiques, allant des \"autorités classiques\" (communes, villes, autorités provinciales, ministères,...) aux entreprises d'intérêt public (tranports publics, gestion des eaux, ...) en passant par les entreprises publiques \"commerciales\". En bref, le programme est parfaitement adapté à tous les services publics."]
[null,"3P est une application très conviviale et rapide, aussi bien à l'utilisation qu'à l'entretien. L'utilisateur ne rencontrera que très rarement un \"sablier\", les écrans s'affichent en quelques dizièmes de secondes. Grâce à la gestion automatique des versions, il n'est nul besoin d'un gestionnaire système pour 3P."]
[null,"Comme les nombreux utilisateurs de 3P, vous vous sentirez immédiatement à l'aise dans 3P. Ceci non seulement grâce à l'utilisation des technologies de pointe les plus modernes mais également grâce au fait que les utilisateurs actuels de 3P ont été impliqués depuis le début dans l'élaboration du programme, et qu'avec nous, ils ont jaugé toutes les fonctionnalités de 3P."]
[null,"Et enfin... 3P vous est proposé à des tarifs imbattables! 3P est donc à la portée de toutes les administrations publiques."]
[null,"Nous vous souhaitons une fructueuse utilisation de 3P !"]
[]
[null,"L'équipe de 3P"]
[]
[null,"Contact:"]
[null,"3P"]
[null,"Verviersstraat 1"]
[null,"2000 Anvers"]
[null,"Tél: 03/294.30.51"]
[null,"Fax: 03/294.30.52"]
[null,"info@3p.eu"]

{"sheet":"Légende","index":4,"n_rows":20,"n_cols":2,"rows_kept":20,"cut":false,"hidden":false,"merged":[]}
[]
["Version","1.1"]
["1. Titres","Seules les colonnes suivantes sont importantes pour l'importation:"]
["Description","Pour une ligne blanche, vous pouvez simplement laisser cette colonne vide."]
["Référence","Référence au CSCH-type ou à votre propre numérotation."]
["(Référence complémentaire)","P.ex. pour mentionner qu'il s'agit d'un chapitre qui n'apparaît pas dans le CSCH-type"]
["2. Sous-totaux","Pour les sous-totaux, seules les colonnes suivantes sont pertinentes pour l’import : "]
["Description","Courte description, ex. « sous-total 1 : travaux d’égouttage »"]
["Total","Total des postes ci-dessus (PUxQ). Important : ce total doit pouvoir être calculé dans excel via la fonction « Somme » !"]
["3. Postes","Explication des colonnes"]
["Numérotation","Numérotation (champ intègre non modifiable). Laisser cette colonne vide. 3P définit la numérotation suivant l'ordre des postes. Si vous avez votre propre numérotation, vous pouvez l'ajouter dans la colonne Référence (qui sert normalement à la référence du CSCH-type)."]
["Référence","Référence à un poste complémentaire dans le CSCH-type."]
["Référence complémentaire","P.ex. pour mentionner qu'il s'agit d'un poste qui n'apparaît pas dans le CSCH-type"]
["Description","Description obligatoire du poste"]
["Type","Vous pouvez compléter ici suivant une des possibilités suivantes :\no QP ou Q.P. : un poste à quantité présumée. Ceci signifie que la quantité du poste ne peut être définie avec précision à l'avance dans le CSCH et qu'il ne peut donc être donné qu'une approximation. Pendant l'exécution, cette quantité peut s'avérer supérieure ou inférieure à la quantité présumée signifiée donc dans le CSCH. Lors du décompte final, le décompte de tous les QP est toujours fait séparément.\no QF ou Q.F. : un poste à quantité forfaitaire. Ceci signifie que la quantité du poste est définie avec exactitude dans le CSCH et ne peut en aucun cas être dépassée pendant l'exécution, sauf suite à l'approbation d'un décompte.\no PT / PG : un poste à prix total / global. La quantité est 1, le prix total du poste est donné.\no MF : un poste à montant fixe. Ceci signifie que le montant est fixé à l'avance et qu'il sera le même dans toutes les offres, p.ex. pour les essais. \no SR : une somme réservée. Ici aussi, le montant est fixé à l'avance et sera le même dans toutes les offres, p.ex. pour des travaux supplémentaires. Cette somme ne sera typiquement pas entièrement utilisée.\nN'est pas sensible à la casse (majuscules). Si non complété, 3P suppose qu'il s'agit d'une quantité présumée (QP).\no PM : un poste pour mémoire. Ceci est une ligne où l'on n'ajoute pas d'estimation ou de quantité, mais utilisée à titre informatif. (par exemple: pour mentionner quels éléments sont inclus dans les postes ci-dessus). Si l’on ajoute une estimation et une quantité, ce poste sera repris dans la liste des postes du métré, mais le prix n’est pas comptabilisé dans l’estimation ou l’offre (et n’est pas montré au soumissionnaire)."]
["U","Unité"]
["Q","Quantité du poste. Via ce champ, 3P différencie un poste d'un titre."]
["PU","Prix unitaire du poste (0 = poste gratuit)"]
["Total","Ce résultat est calculé par 3P et arrondi à 2 chiffres après la virgule"]
["TVA%","Si vous ne complétez pas ceci, 3P suppose que vous reprenez le pourcentage standard de TVA de votre pouvoir adjudicateur (souvent 21%¨). Pour un poste sans TVA ou avec un autre pourcentage de TVA, veillez à compléter le pourcentage en question. Le total TVA par pourcentage est également arrondi à 2 chiffres après la virgule."]